fUSD/lending_fUSD_20240118
["ID","MTS","AMOUNT","RATE_DAILY","PERIOD"]
[312089433,1705608853588,155.26494261,0.00021385,2]
[312089434,1705608858602,3926.3270949,0.00021385,2]
[312089435,1705608873951,168.37,0.00021303,2]
[312089436,1705608878753,162.44,0.00021255,10]
[312089437,1705608880168,155.0,0.00021385,2]
[312089438,1705608884031,200.0,0.00021332,2]
[312089439,1705608892727,3177.19,0.00021304,2]
[312089440,1705608900059,2000.0,0.00021291,2]
[312089441,1705608912328,500.0,0.00021288,2]
[312089442,1705608912556,1002.51,0.00021288,2]
[312089443,1705608915696,155.1479505,0.00021304,2]
[312089444,1705608934191,167.47,0.00021281,2]
[312089445,1705608935066,324.72,0.00021281,2]
[312089446,1705608955137,6865.2828256,0.00021285,2]
[312089447,1705608955162,7357.4728256,0.00021285,2]
[312089448,1705608955185,7357.4728256,0.00021285,2]
[312089449,1705608955207,2319.7715232,0.00021285,2]
[312089450,1705608957651,250.0,0.00021293,2]
[312089451,1705608964024,1557.5,0.00021284,2]
[312089452,1705608985531,953.82,0.00021291,2]
[312089453,1705609004903,396.32,0.00021269,2]
[312089454,1705609020501,1359.85,0.00021454,2]
[312089455,1705609036476,200.0,0.00021295,2]
[312089456,1705609047416,848.1,0.00021135,2]
[312089457,1705609047525,10752.77,0.00021287,2]
[312089458,1705609070427,161.46,0.00021471,2]
[312089459,1705609071529,226.96,0.00021258,2]
[312089460,1705609072705,476.42,0.00021255,2]
[312089461,1705609081715,150.0,0.00021286,2]
[312089462,1705609133028,579.69,0.0002128,2]
[312089463,1705609135307,750.0,0.0002128,2]
[312089464,1705609153918,500.0,0.000213,2]
[312089465,1705609155845,1852.42,0.000213,2]
[312089466,1705609183176,187.12,0.00021289,2]
[312089467,1705609183605,187.12,0.00021457,2]
[312089468,1705609218012,164.37403353,0.00021517,2]
[312089469,1705609318293,162.44,0.00021237,10]
[312089470,1705609335334,190.90927065,0.000216,2]
[312089471,1705609339068,622.0675477,0.000216,2]
[312089472,1705609342316,5334.09744335,0.000216,2]
[312089473,1705609344988,155.0,0.000216,2]
[312089474,1705609347154,3126.62522492,0.000216,2]
[312089475,1705609348232,360.89809472,0.000216,2]
[312089476,1705609353741,204.0,0.00021007,2]
[312089477,1705609353963,7105.1667781,0.000216,5]
[312089478,1705609354700,204.40930052,0.000216,2]
[312089479,1705609355081,622.0675477,0.00021526,2]
[312089480,1705609361159,3126.62522492,0.00021302,2]
[312089481,1705609367916,360.89809472,0.00017938,2]
[312089482,1705609368414,2000.0,0.00021135,2]
[312089483,1705609369995,473.29314073,0.000216,2]
[312089484,1705609371830,1852.58418893,0.000216,2]
[312089485,1705609372134,527.95807681,0.000216,2]
[312089486,1705609373093,620.89778798,0.00021526,2]
[312089487,1705609376316,419.94308702,0.000216,2]
[312089488,1705609377158,1492.15947741,0.00021302,2]
[312089489,1705609378415,867.19372156,0.000216,2]
[312089490,1705609382328,501.47469399,0.000216,2]
[312089491,1705609387105,230.58874034,0.000216,2]
[312089492,1705609387913,360.89809472,0.00017938,2]
[312089493,1705609388319,282.82132307,0.00021526,2]
[312089494,1705609394269,150.0,0.00021483,2]
[312089495,1705609399115,508.25,0.00019439,2]
[312089496,1705609405916,451.4499069,0.00017938,2]
[312089497,1705609408732,222.98,0.00021347,2]
[312089498,1705609425220,166.02,0.00021371,2]
[312089499,1705609430616,1050.58506121,0.0002137,2]
[312089500,1705609435105,682.94,0.00021217,2]
[312089501,1705609441872,245.13099503,0.00020181,2]
[312089502,1705609447311,155.0,0.000216,2]
[312089503,1705609451618,230.58874034,0.000216,2]
[312089504,1705609453776,23900.0,0.00021115,2]
[312089505,1705609454713,516.51875521,0.000216,2]
[312089506,1705609455816,404.33758055,0.000216,2]
[312089507,1705609455849,190.90927065,0.000216,2]
[312089508,1705609461188,279.14491656,0.000216,2]
[312089509,1705609468951,867.19372156,0.000216,2]
[312089510,1705609472688,766.72186599,0.000216,2]
[312089511,1705609472840,501.47469399,0.000216,2]
[312089512,1705609473683,233.20989543,0.000216,2]
[312089513,1705609473991,1045.42044189,0.000216,2]
[312089514,1705609475705,161.78624904,0.000216,2]
[312089515,1705609478214,252.97980299,0.000216,2]
[312089516,1705609481109,242.49739658,0.000216,2]
[312089517,1705609483183,384.24826155,0.000216,2]
[312089518,1705609486923,361.73818308,0.000216,2]
[312089519,1705609487536,1812.15097522,0.000216,2]
[312089520,1705609489988,376.92196411,0.000216,2]
[312089521,1705609492527,424.05,0.00021111,2]
[312089522,1705609496413,523.83148991,0.000216,2]
[312089523,1705609503153,161.24,0.00021303,2]
[312089524,1705609511829,174.22213043,0.000216,2]
[312089525,1705609514219,4247.28131875,0.000216,2]
[312089526,1705609515110,217.97798028,0.000216,2]
[312089527,1705609515685,215.11040998,0.000216,2]
[312089528,1705609515714,2902.03517227,0.000216,2]
[312089529,1705609515759,196.75901238,0.000216,2]
[312089530,1705609515853,337.65513857,0.000216,2]
[312089531,1705609516679,2020.53490244,0.000216,2]
[312089532,1705609518645,386.98615303,0.000216,2]
[312089533,1705609519318,155.0,0.000216,2]
[312089534,1705609519569,525.2263573,0.000216,2]
[312089535,1705609519807,2947.31448158,0.000216,2]
[312089536,1705609520025,310.19748729,0.000216,2]
[312089537,1705609520781,628.91762813,0.000216,2]
[312089538,1705609521473,651.64595298,0.000216,2]
[312089539,1705609522073,155.0,0.000216,2]
[312089540,1705609523105,203.29975543,0.000216,2]
[312089541,1705609524461,155.0,0.000216,2]
[312089542,1705609524506,474.43564618,0.000216,2]
[312089543,1705609524577,250.33246589,0.000216,2]
[312089544,1705609525474,406.94668334,0.000216,2]
[312089545,1705609526149,155.0,0.000216,2]
[312089546,1705609526218,2137.86886367,0.000216,2]
[312089547,1705609527293,524.85123052,0.000216,2]
[312089548,1705609527589,155.0,0.000216,2]
[312089549,1705609528928,228.31585659,0.000216,2]
[312089550,1705609529540,155.0,0.000216,2]
[312089551,1705609529925,3005.22093109,0.000216,2]
[312089552,1705609530312,404.33758055,0.000216,2]
[312089553,1705609530594,488.00299749,0.000216,2]
[312089554,1705609531312,1044.05266194,0.000216,2]
[312089555,1705609531470,234.42493184,0.000216,2]
[312089556,1705609532222,419.58153538,0.000216,2]
[312089557,1705609532509,155.0,0.000216,2]
[312089558,1705609532957,200.0,0.00021111,2]
[312089559,1705609533129,400.0,0.000216,2]
[312089560,1705609533677,279.14491656,0.000216,2]
[312089561,1705609533984,1060.96854815,0.000216,2]
[312089562,1705609534780,150.0,0.00021111,2]
[312089563,1705609535416,2611.83116676,0.000216,2]
[312089564,1705609536659,7784.1727728,0.000216,2]
[312089565,1705609537455,6438.60414966,0.000216,2]
[312089566,1705609537646,177.85048408,0.000216,2]
[312089567,1705609539226,516.51875521,0.000216,2]
[312089568,1705609539344,501.47469399,0.000216,2]
[312089569,1705609539477,155.0,0.000216,2]
[312089570,1705609540089,265.51293353,0.000216,2]
[312089571,1705609540236,162.2165362,0.000216,2]
[312089572,1705609542123,343.09423097,0.000216,2]
[312089573,1705609542194,286.6896523,0.000216,2]
[312089574,1705609543802,155.0,0.000216,2]
[312089575,1705609544365,190.90927065,0.000216,2]
[312089576,1705609544580,4350.07010966,0.000216,2]
[312089577,1705609544757,202.69024443,0.000216,2]
[312089578,1705609545013,487.05178237,0.000216,2]
[312089579,1705609545183,766.72186599,0.000216,2]
[312089580,1705609547440,867.19372156,0.000216,2]
[312089581,1705609550886,1709.34804909,0.000216,2]
[312089582,1705609555599,242.49739658,0.000216,2]
[312089583,1705609556236,1812.15097522,0.000216,2]
[312089584,1705609556297,161.78624904,0.000216,2]
[312089585,1705609556339,3144.72559597,0.000216,2]
[312089586,1705609556751,158.80709241,0.000216,2]
[312089587,1705609557932,361.73818308,0.000216,2]
[312089588,1705609558280,5101.15692878,0.000216,2]
[312089589,1705609559914,843.17283709,0.000216,2]
[312089590,1705609562798,155.0,0.00021599,2]
[312089591,1705609565680,3030.11138034,0.000216,2]
[312089592,1705609566285,376.92196411,0.000216,2]
[312089593,1705609567871,1370.05485004,0.000216,2]
[312089594,1705609573913,523.83148991,0.000216,2]
[312089595,1705609588193,215.11040998,0.000216,2]
[312089596,1705609588366,174.22213043,0.000216,2]
[312089597,1705609590244,2902.03517227,0.000216,2]
[312089598,1705609591002,474.43564618,0.000216,2]
[312089599,1705609591157,386.98615303,0.000216,2]
[312089600,1705609592261,196.75901238,0.000216,2]
[312089601,1705609593086,750.0,0.00021083,2]
[312089602,1705609593116,2947.31448158,0.000216,2]
[312089603,1705609595069,33747.14516513,0.000216,2]
[312089604,1705609596365,337.65513857,0.000216,2]
[312089605,1705609597778,524.85123052,0.000216,2]
[312089606,1705609598244,651.64595298,0.000216,2]
[312089607,1705609601281,628.91762813,0.000216,2]
[312089608,1705609602079,525.2263573,0.000216,2]
[312089609,1705609603096,488.00299749,0.000216,2]
[312089610,1705609603123,391.83,0.00021098,2]
[312089611,1705609603389,217.97798028,0.000216,2]
[312089612,1705609603605,203.29975543,0.000216,2]
[312089613,1705609605000,155.0,0.000216,2]
[312089614,1705609606549,265.51293353,0.000216,2]
[312089615,1705609607011,541.04,0.00021104,2]
[312089616,1705609607164,7784.1727728,0.000216,2]
[312089617,1705609608881,3005.22093109,0.000216,2]
[312089618,1705609609944,2611.83116676,0.000216,2]
[312089619,1705609612717,286.6896523,0.000216,2]
[312089620,1705609615746,516.51875521,0.000216,2]
[312089621,1705609615845,1044.05266194,0.000216,2]
[312089622,1705609616846,1852.58418893,0.00021599,2]
[312089623,1705609617650,400.0,0.00021599,2]
[312089624,1705609618745,419.58153538,0.00021599,2]
[312089625,1705609619517,487.05178237,0.00021599,2]
[312089626,1705609626517,384.65105166,0.000216,2]
[312089627,1705609626935,361.73818308,0.000216,2]
[312089628,1705609627710,766.72186599,0.000216,2]
[312089629,1705609627894,501.47469399,0.000216,2]
[312089630,1705609632117,242.49739658,0.000216,2]
[312089631,1705609632734,161.78624904,0.000216,2]
[312089632,1705609632873,940.65228731,0.000216,2]
[312089633,1705609635281,303.27,0.0002107,2]
[312089634,1705609636802,3144.72559597,0.000216,2]
[312089635,1705609641031,158.80709241,0.000216,2]
[312089636,1705609643426,523.83148991,0.000216,2]
[312089637,1705609644174,3030.11138034,0.000216,2]
[312089638,1705609646419,1370.05485004,0.000216,2]
[312089639,1705609648539,723.4352,0.00021541,2]
[312089640,1705609660760,2902.03517227,0.000216,2]
[312089641,1705609661530,16763.70229707,0.000216,2]
[312089642,1705609666863,174.22213043,0.000216,2]
[312089643,1705609669811,628.91762813,0.000216,2]
[312089644,1705609670047,153.7,0.00021101,2]
[312089645,1705609670795,2947.31448158,0.000216,2]
[312089646,1705609671150,153.7,0.00021417,2]
[312089647,1705609671282,376.92196411,0.000216,2]
[312089648,1705609674901,337.65513857,0.000216,2]
[312089649,1705609676126,203.29975543,0.000216,2]
[312089650,1705609676717,525.2263573,0.000216,2]
[312089651,1705609676756,196.75901238,0.000216,2]
[312089652,1705609677213,286.6896523,0.000216,2]
[312089653,1705609678943,3005.22093109,0.000216,2]
[312089654,1705609679249,5101.15692878,0.000216,2]
[312089655,1705609683036,265.51293353,0.000216,2]
[312089656,1705609685062,1812.15097522,0.000216,2]
[312089657,1705609687171,1163.99,0.00021258,2]
[312089658,1705609689365,1852.58418893,0.000216,2]
[312089659,1705609689908,1709.34804909,0.000216,2]
[312089660,1705609690156,400.0,0.000216,2]
[312089661,1705609691861,4350.07010966,0.000216,2]
[312089662,1705609695615,10525.98434181,0.000216,2]
[312089663,1705609699617,488.00299749,0.000216,2]
[312089664,1705609700256,516.51875521,0.000216,2]
[312089665,1705609701237,161.78624904,0.000216,2]
[312089666,1705609702245,361.73818308,0.000216,2]
[312089667,1705609706040,487.05178237,0.000216,2]
[312089668,1705609706252,279.14491656,0.000216,2]
[312089669,1705609707311,3144.72559597,0.000216,2]
[312089670,1705609707802,226.03253438,0.000216,2]
[312089671,1705609709371,940.65228731,0.000216,2]
[312089672,1705609711302,354.54863054,0.000216,2]
[312089673,1705609712858,155.0,0.00021599,2]
[312089674,1705609713681,158.80709241,0.00021599,2]
[312089675,1705609714198,204.0,0.00021567,2]
[312089676,1705609714466,867.19372156,0.00021599,2]
[312089677,1705609714802,1060.96854815,0.00021599,2]
[312089678,1705609714979,651.64595298,0.00021599,2]
[312089679,1705609715243,162.2165362,0.00021599,2]
[312089680,1705609715339,404.33758055,0.00021599,2]
[312089681,1705609715384,190.90927065,0.00021599,2]
[312089682,1705609720926,523.83148991,0.000216,2]
[312089683,1705609721270,202.69024443,0.00021599,2]
[312089684,1705609742567,245.5,0.00021114,2]
[312089685,1705609748762,3625.38932793,0.000216,2]
[312089686,1705609749554,1812.15097522,0.000216,2]
[312089687,1705609750638,203.29975543,0.000216,2]
[312089688,1705609752508,530.78988051,0.000216,2]
[312089689,1705609753405,337.65513857,0.000216,2]
[312089690,1705609753653,386.98615303,0.000216,2]
[312089691,1705609755720,286.6896523,0.000216,2]
[312089692,1705609758242,515.60399077,0.000216,2]
[312089693,1705609759129,525.2263573,0.000216,2]
[312089694,1705609759204,6236.5926,0.00021541,2]
[312089695,1705609759971,157.58541762,0.000216,2]
[312089696,1705609761466,1256.24889353,0.000216,2]
[312089697,1705609761545,265.51293353,0.000216,2]
[312089698,1705609761813,5101.15692878,0.000216,2]
[312089699,1705609761866,1852.58418893,0.000216,2]
[312089700,1705609768648,400.0,0.000216,2]
[312089701,1705609770295,524.85123052,0.000216,2]
[312089702,1705609772311,10904.6549789,0.000216,2]
[312089703,1705609776365,4350.07010966,0.000216,2]
[312089704,1705609777831,3144.72559597,0.000216,2]
[312089705,1705609778677,163.84034636,0.00021517,2]
[312089706,1705609779321,1060.96854815,0.000216,2]
[312089707,1705609780513,1024.92493023,0.000216,2]
[312089708,1705609781278,419.58153538,0.000216,2]
[312089709,1705609781451,361.73818308,0.000216,2]
[312089710,1705609783895,190.90927065,0.000216,2]
[312089711,1705609785203,3030.11138034,0.000216,2]
[312089712,1705609787807,354.54863054,0.000216,2]
[312089713,1705609789499,651.64595298,0.000216,2]
[312089714,1705609793338,155.0,0.000216,2]
[312089715,1705609797774,162.2165362,0.000216,2]
[312089716,1705609797831,376.92196411,0.000216,2]
[312089717,1705609801892,174.22213043,0.000216,2]
[312089718,1705609802100,155.0,0.000216,2]
[312089719,1705609808825,628.91762813,0.000216,2]
[312089720,1705609809382,155.0,0.000216,2]
[312089721,1705609814930,155.0,0.000216,2]
[312089722,1705609818508,155.0,0.000216,2]
[312089723,1705609819397,155.0,0.000216,2]
[312089724,1705609820783,155.0,0.000216,2]
[312089725,1705609821815,155.0,0.000216,2]
[312089726,1705609822016,155.0,0.000216,2]
[312089727,1705609824266,250.0,0.00020649,2]
[312089728,1705609830087,1812.15097522,0.000216,2]
[312089729,1705609831371,155.0,0.000216,2]
[312089739,1705609832761,515.60399077,0.000216,2]
[312089740,1705609834026,1178.34224011,0.000216,2]
[312089748,1705609834596,-252.04447886,0.00021601,2]
[312089749,1705609834606,-121.4674065,0.00021601,2]
[312089750,1705609834618,-51.28731338,0.00021601,2]
[312089751,1705609834628,-2297.42810168,0.00021601,2]
[312089752,1705609834637,-1753.6380885,0.00021609,2]
[312089753,1705609834652,-501.48085518,0.00021609,2]
[312089754,1705609834685,190.44,0.00021271,2]
[312089755,1705609834698,-1035.83676,0.00021609,2]
[312089756,1705609834730,-1810.2012251,0.00021609,2]
[312089757,1705609834740,-547.01659378,0.0002161,2]
[312089758,1705609834750,-33485.14466055,0.00021612,2]
[312089759,1705609834763,-10076.2024,0.00021612,2]
[312089760,1705609834778,-12918.19129919,0.00021612,2]
[312089761,1705609834789,-10525.98434181,0.00021612,2]
[312089762,1705609834798,-1903.37862278,0.00021613,2]
[312089763,1705609834865,-1637.35572,0.00021613,2]
[312089764,1705609834877,-408.84,0.00021613,2]
[312089765,1705609834889,-4096.4882,0.00021613,2]
[312089770,1705609834966,-272.13207649,0.00021613,2]
[312089778,1705609835075,190.44,0.00021329,2]
[312089803,1705609835319,190.44,0.00021388,2]
[312089839,1705609835656,525.2263573,0.000216,2]
[312089845,1705609835714,190.44,0.00021446,2]
[312089846,1705609835867,155.0,0.000216,2]
[312089847,1705609835972,190.44,0.00021504,2]
[312089848,1705609836239,190.44,0.00021562,2]
[312089849,1705609836500,155.0,0.000216,2]
[312089850,1705609837136,513.17,0.00019225,2]
[312089851,1705609837547,155.0,0.0002,2]
[312089860,1705609837675,513.17,0.00021489,2]
[312089886,1705609838237,-255.65200339,0.00021613,2]
[312089889,1705609838249,-294.36661831,0.00021613,2]
[312089891,1705609838260,-15477.8076081,0.00021613,2]
[312089893,1705609838270,-626.68080716,0.00021613,2]
[312089895,1705609838281,-8176.4,0.00021613,2]
[312089898,1705609838304,-1195.03324386,0.00021613,2]
[312089901,1705609838315,-4105.3478611,0.00021613,2]
[312089906,1705609838353,-28901.27340214,0.00021613,2]
[312089908,1705609838362,-300.0,0.00021614,2]
[312089910,1705609838371,-150.0,0.00021614,2]
[312089912,1705609838380,-150.0,0.00021614,2]
[312089914,1705609838389,-16763.70229707,0.00021614,2]
[312089916,1705609838401,-33377.27737078,0.00021615,2]
[312089918,1705609838410,-190.44,0.00021621,2]
[312089920,1705609838419,-187.12,0.00021625,2]
[312089922,1705609838428,-3284.46,0.00021635,2]
[312089924,1705609838437,-1139.25474807,0.0002164,2]
[312089926,1705609838446,-1627.23,0.00021644,2]
[312089928,1705609838456,-1352.5,0.00021644,2]
[312089930,1705609838465,-163.84034627,0.00021671,2]
[312089932,1705609838474,-190.44,0.00021679,2]
[312089934,1705609838483,-735.04,0.00021726,2]
[312089936,1705609838493,-153.7,0.00021734,2]
[312089938,1705609838502,-190.44,0.00021737,2]
[312089940,1705609838511,-2074.93277737,0.0002175,2]
[312089942,1705609838520,-724.27,0.00021777,2]
[312089944,1705609838529,-187.12,0.00021793,2]
[312089946,1705609838538,-190.44,0.00021796,2]
[312089948,1705609838547,-4936.8178,0.00021818,2]
[312089950,1705609838556,-15918.7829,0.00021818,2]
[312089952,1705609838565,-163.84034627,0.00021824,2]
[312089954,1705609838574,-728.59,0.00021846,2]
[312089956,1705609838583,-5152.45530553,0.00021847,7]
[312089958,1705609838592,-11900.0,0.00021918,2]
[312089960,1705609838602,-10000.0,0.00021918,2]
[312089962,1705609838611,-250.0,0.00021918,2]
[312089964,1705609838620,-187.12,0.00021961,2]
[312089966,1705609838629,-163.84034627,0.00021978,2]
[312089968,1705609838639,-3195.13608794,0.00022,2]
[312089970,1705609838651,-150.0,0.00022,2]
[312089972,1705609838660,-150.0,0.00022,2]
[312089974,1705609838669,-176.3,0.00022,2]
[312089976,1705609838678,-500.0,0.00022,2]
[312089978,1705609838688,-511.5,0.00022,2]
[312089980,1705609838697,-550.0,0.00022,3]
[312089982,1705609838706,-303.41549155,0.00022,2]
[312089984,1705609838716,-2780.53772112,0.00022015,2]
[312089986,1705609838728,-941.08515656,0.00022016,2]
[312089988,1705609838737,-153.7,0.0002205,2]
[312089990,1705609838746,-541.04,0.00022082,2]
[312089992,1705609838756,-187.12,0.00022129,2]
[312089994,1705609838766,-163.84034627,0.00022132,2]
[312089996,1705609838778,-161.46,0.00022144,2]
[312089998,1705609838788,-245.5,0.00022169,2]
[312090000,1705609838797,-155.0,0.00022199,2]
[312090002,1705609838806,-1009.25724893,0.000222,2]
[312090004,1705609838818,-400.0,0.000222,8]
[312090006,1705609838827,-3155.7457,0.00022222,2]
[312090008,1705609838837,-811.4975,0.00022222,2]
[312090009,1705609838846,-162.44,0.00022277,10]
[312090010,1705609838856,-163.84034627,0.00022285,2]
[312090011,1705609838867,-187.12,0.00022298,2]
[312090012,1705609838876,-900.0,0.000223,8]
[312090013,1705609838886,-155.82054156,0.00022321,2]
[312090014,1705609838898,-42002.6673,0.00022322,2]
[312090015,1705609838907,-550.4073,0.00022322,2]
[312090016,1705609838917,-1192.02093069,0.00022323,2]
[312090018,1705609838926,-2500.0,0.00022323,2]
[312090020,1705609838935,-510.0822,0.00022325,2]
[312090022,1705609838945,-302.6412,0.00022325,2]
[312090024,1705609838954,-1749.84332214,0.00022332,2]
[312090026,1705609838964,-153.7,0.00022367,2]
[312090028,1705609838973,-1749.84332213,0.00022395,2]
[312090030,1705609838984,-1400.0,0.000224,8]
[312090032,1705609838993,-1192.02093066,0.00022405,2]
[312090034,1705609839003,-371.12292283,0.0002241,2]
[312090036,1705609839013,-426.35422359,0.00022419,2]
[312090038,1705609839023,-1044.20541595,0.00022419,2]
[312090040,1705609839035,-625.70161924,0.00022419,2]
[312090042,1705609839058,-172.82800353,0.0002242,2]
[312090044,1705609839080,-1640.07824414,0.0002242,2]
[312090046,1705609839106,-230.58874034,0.00022421,2]
[312090048,1705609839130,-232.91061502,0.00022421,2]
[312090050,1705609839157,-252.68327152,0.00022421,2]
[312090052,1705609839179,-383.8025594,0.00022421,2]
[312090053,1705609839194,-1093.94067814,0.00022421,2]
[312090056,1705609839205,-2559.80198056,0.00022421,2]
[312090058,1705609839214,-280.623262,0.00022421,2]
[312090060,1705609839224,-159.23180862,0.00022421,2]
[312090062,1705609839233,-213.68654637,0.00022421,2]
[312090064,1705609839243,-230.3513771,0.00022421,2]
[312090066,1705609839252,-1254.60065173,0.00022421,2]
[312090068,1705609839261,-356.41047416,0.00022421,2]
[312090070,1705609839270,-269.6039238,0.00022421,2]
[312090072,1705609839279,-1852.58418893,0.00022421,2]
[312090074,1705609839290,-529.00416064,0.00022421,2]
[312090076,1705609839299,-303.41284724,0.00022421,2]
[312090078,1705609839308,-314.06282553,0.00022421,2]
[312090080,1705609839318,-4350.07010966,0.00022421,2]
[312090082,1705609839327,-3144.72559597,0.00022421,2]
[312090084,1705609839336,-3030.11138034,0.00022421,2]
[312090085,1705609839346,-1200.61493533,0.00022421,2]
[312090087,1705609839355,-482.55274911,0.00022421,2]
[312090089,1705609839364,-916.37419282,0.00022421,2]
[312090091,1705609839374,-1870.17245242,0.00022421,2]
[312090093,1705609839383,-190.90927065,0.00022421,2]
[312090095,1705609839393,-155.0,0.00022421,2]
[312090096,1705609839403,-295.05650165,0.00022421,2]
[312090098,1705609839412,-353.86490345,0.00022421,2]
[312090101,1705609839422,-161.23023129,0.00022421,2]
[312090103,1705609839432,-99747.95552114,0.00022421,2]
[312090105,1705609839441,-758.72176657,0.00022421,2]
[312090107,1705609839451,-248.34701339,0.00022421,2]
[312090109,1705609839460,-155.0,0.00022421,2]
[312090111,1705609839470,-2290.30316654,0.00022422,2]
[312090113,1705609839479,-3999.5722838,0.00022422,2]
[312090115,1705609839489,-158.3790852,0.00022423,2]
[312090117,1705609839498,-2432.3772662,0.00022423,5]
[312090119,1705609839508,-217.71835714,0.00022423,2]
[312090121,1705609839518,-590.6081187,0.00022423,2]
[312090123,1705609839527,-155.0,0.00022423,2]
[312090125,1705609839537,-302.15300619,0.00022423,2]
[312090127,1705609839547,-3043.56963147,0.00022423,2]
[312090129,1705609839556,-1136.22308606,0.00022423,2]
[312090131,1705609839566,-371.08106366,0.00022423,2]
[312090133,1705609839576,-155.0,0.00022423,2]
[312090135,1705609839586,-155.0,0.00022423,2]
[312090137,1705609839595,-1050.58506121,0.00022423,2]
[312090139,1705609839605,-309.69148115,0.00022423,2]
[312090141,1705609839615,-2134.55079587,0.00022423,2]
[312090143,1705609839626,-291.66404832,0.00022423,2]
[312090145,1705609839636,-215.26176759,0.00022423,2]
[312090147,1705609839649,-156.3108793,0.00022423,2]
[312090149,1705609839659,-249.93895457,0.00022423,2]
[312090151,1705609839670,-155.40188375,0.00022423,2]
[312090153,1705609839679,-364.48267222,0.00022423,2]
[312090155,1705609839689,-209.58561011,0.00022423,2]
[312090157,1705609839699,-4931.31029246,0.00022423,2]
[312090159,1705609839708,-206.36007601,0.00022423,2]
[312090161,1705609839717,-351.70428963,0.00022423,2]
[312090163,1705609839731,-989.86372624,0.00022423,2]
[312090165,1705609839741,-846.8786514,0.00022423,2]
[312090167,1705609839750,-205.0,0.00022423,2]
[312090169,1705609839760,-343.35522406,0.00022423,2]
[312090171,1705609839772,-604.73832353,0.00022423,2]
[312090173,1705609839782,-238.75842086,0.00022423,2]
[312090175,1705609839791,-175.83572121,0.00022423,2]
[312090176,1705609839801,-434.2900175,0.00022423,2]
[312090178,1705609839811,-784.28432325,0.00022423,2]
[312090180,1705609839821,-512.05345298,0.00022423,2]
[312090182,1705609839831,-845.89123938,0.00022423,2]
[312090184,1705609839841,-242.39456891,0.00022423,2]
[312090186,1705609839852,-194.45301712,0.00022423,2]
[312090188,1705609839862,-1175.41173405,0.00022423,2]
[312090191,1705609839875,-1268.54013485,0.00022423,2]
[312090192,1705609839885,-2927.22376239,0.00022423,2]
[312090195,1705609839895,-199.21065769,0.00022423,2]
[312090197,1705609839909,-711.67646813,0.00022423,2]
[312090198,1705609839918,-542.62714348,0.00022423,2]
[312090201,1705609839928,-2796.84901767,0.00022423,2]
[312090203,1705609839937,-155.0,0.00022423,2]
[312090205,1705609839948,-286.10519124,0.00022423,2]
[312090207,1705609839958,-652.58874153,0.00022423,2]
[312090209,1705609839968,-1370.98811656,0.00022423,2]
[312090211,1705609839978,-219.04291344,0.00022423,2]
[312090213,1705609839987,-231.88293603,0.00022423,2]
[312090215,1705609839997,-522.61512711,0.00022423,2]
[312090217,1705609840007,-171.79656324,0.00022423,2]
[312090219,1705609840016,-209.17253615,0.00022423,2]
[312090221,1705609840026,-770.61257015,0.00022423,2]
[312090223,1705609840037,-614.7216295,0.00022423,2]